bitfinex/quotes_ETHUSD_20260213
["timestamp","ask_amount","ask_price","bid_price","bid_amount"]
[1771017803112,0.57790087,2053.4,2053.1,0.001]
[1771017803484,7.68508074,2053.5,2053.1,0.001]
[1771017803688,2.91440744,2053.4,2053.1,0.001]
[1771017803885,2.91440744,2053.3,2053.1,0.001]
[1771017804090,8.26298161,2053.5,2053.1,0.001]
[1771017804291,2.91442306,2053.4,2053.1,0.001]
[1771017804515,2.91442306,2053.3,2053.1,0.001]
[1771017804819,8.26298161,2053.5,2053.1,0.001]
[1771017805022,2.91486431,2053.4,2053.1,0.001]
[1771017805194,2.91486431,2053.3,2053.1,0.001]
[1771017805393,8.26298161,2053.5,2053.1,0.001]
[1771017805606,2.91547302,2053.4,2053.1,0.001]
[1771017805807,2.91547302,2053.3,2053.1,0.001]
[1771017806101,0.57790087,2053.4,2053.1,0.001]
[1771017806302,2.91547948,2053.3,2053.1,0.001]
[1771017806507,0.57790087,2053.4,2053.1,0.001]
[1771017806713,2.91633552,2053.3,2053.1,0.001]
[1771017806888,0.57790087,2053.4,2053.1,0.001]
[1771017807087,2.91633615,2053.3,2053.1,0.001]
[1771017807295,0.57790087,2053.4,2053.1,0.001]
[1771017807494,2.9169475,2053.3,2053.1,0.001]
[1771017807690,2.91703216,2053.2,2053.0,0.001]
[1771017808024,0.57790087,2053.4,2053.0,0.001]
[1771017808235,2.91704513,2053.3,2053.0,0.001]
[1771017808530,2.91770934,2053.2,2053.0,0.001]
[1771017808735,0.57790087,2053.4,2053.0,0.001]
[1771017808931,2.9177675,2053.3,2053.0,0.001]
[1771017809137,2.9177675,2053.2,2053.0,0.001]
[1771017809315,2.91868622,2053.1,2053.0,0.001]
[1771017810710,2.91831129,2053.1,2053.0,0.001]
[1771017811935,1.494,2053.5,2053.0,0.0469783]
[1771017812233,2.91844441,2053.4,2053.0,0.0469783]
[1771017812436,2.91844441,2053.3,2053.0,0.0469783]
[1771017812646,2.91844441,2053.2,2053.0,0.001]
[1771017812807,2.91847885,2053.1,2053.0,0.001]
[1771017818454,2.91713564,2053.1,2052.9,0.001]
[1771017818615,0.58663386,2053.2,2052.9,0.001]
[1771017819619,0.58663386,2053.2,2052.4,1.376]
[1771017819818,0.58663386,2053.2,2052.7,0.001]
[1771017820141,0.58663386,2053.0,2052.7,0.001]
[1771017823514,0.58663386,2053.2,2052.7,0.001]
[1771017823713,7.69604317,2053.5,2052.7,0.001]
[1771017823914,7.69604317,2053.1,2052.7,0.001]
[1771017824117,8.28267703,2053.1,2052.7,0.001]
[1771017824515,0.58663386,2053.1,2052.7,0.001]
[1771017824717,1.501,2053.4,2052.7,0.57662077]
[1771017825048,0.58663386,2053.9,2052.9,0.57562077]
[1771017825248,0.58663386,2053.7,2052.9,0.57562077]
[1771017833361,1.501,2053.8,2052.9,0.57562077]
[1771017833565,1.498,2054.0,2053.3,0.57562077]
[1771017833735,2.08463386,2054.0,2053.3,0.57562077]
[1771017833935,0.58663386,2053.9,2053.3,0.57562077]
[1771017834559,0.58663386,2053.9,2053.0,7.69604317]
[1771017834560,0.58663386,2053.9,2053.1,0.57562077]
[1771017835964,0.58663386,2053.8,2053.1,0.57562077]
[1771017837975,1.4991,2054.0,2053.3,0.57562077]
[1771017838269,0.0011,2054.0,2053.3,0.57562077]
[1771017838871,0.58773386,2054.0,2053.3,0.57562077]
[1771017843266,0.0011,2054.0,2053.5,0.55281671]
[1771017843574,0.0011,2054.3,2053.7,0.55281671]
[1771017850845,0.0011,2054.3,2053.9,0.55281671]
[1771017851048,0.0011,2054.3,2054.1,0.55281671]
[1771017851271,0.0011,2054.4,2054.1,0.55281671]
[1771017852273,0.0011,2054.4,2054.3,0.55281671]
[1771017852684,0.0011,2054.6,2054.3,0.55281671]
[1771017856859,0.0011,2054.8,2054.5,0.55281671]
[1771017857052,0.0011,2054.8,2054.6,0.55281671]
[1771017857767,0.0011,2054.9,2054.6,0.55281671]
[1771017857768,0.0011,2055.1,2054.7,0.55281671]
[1771017858481,0.0011,2055.1,2054.9,0.55281671]
[1771017858679,0.0011,2055.1,2054.8,7.69604317]
[1771017858888,0.0011,2055.1,2054.7,0.55281671]
[1771017859180,0.0011,2054.9,2054.7,0.55281671]
[1771017859380,0.0011,2054.9,2054.8,0.499]
[1771017861415,0.0011,2054.9,2054.8,1.05181671]
[1771017861896,0.0011,2055.1,2054.9,0.55281671]
[1771017863296,0.0011,2055.1,2055.0,0.502]
[1771017867686,0.0011,2055.1,2054.8,0.504]
[1771017867885,0.0011,2056.0,2055.1,0.55281671]
[1771017868093,0.0011,2056.0,2055.3,0.55281671]
[1771017868292,0.29895451,2056.1,2055.3,0.55281671]
[1771017868497,0.0011,2056.1,2055.3,0.55281671]
[1771017871278,0.0011,2055.4,2055.3,0.55281671]
[1771017871519,0.0011,2056.1,2055.3,0.55281671]
[1771017872006,0.0011,2055.6,2055.3,0.55281671]
[1771017877717,0.0011,2056.0,2055.4,0.52683399]
[1771017877914,0.0011,2056.0,2055.5,1.04083399]
[1771017882696,0.0011,2056.0,2055.5,0.514]
[1771017884419,0.28656324,2056.0,2055.5,0.514]
[1771017889367,0.0011,2056.0,2055.5,0.514]
[1771017889514,0.0011,2056.0,2055.5,1.04083399]
[1771017895552,0.0011,2056.0,2055.6,0.52683399]
[1771017898544,0.25833558,2055.7,2055.2,0.001]
[1771017898741,7.67557308,2055.4,2054.9,0.52683399]
[1771017898944,7.67557308,2055.2,2054.7,0.52683399]
[1771017899865,0.25833558,2055.4,2054.7,0.52683399]
[1771017899866,7.93390866,2055.4,2054.7,0.52683399]
[1771017900236,0.0011,2056.0,2055.2,0.52683399]
[1771017900760,0.25595188,2056.0,2055.2,0.52683399]
[1771017900927,9.15167308,2056.2,2055.3,0.56353472]
[1771017902362,7.67557308,2056.0,2055.3,0.56353472]
[1771017903062,1.4761,2056.2,2055.4,0.56353472]
[1771017905761,0.0011,2056.2,2055.4,0.56353472]
[1771017906154,0.0011,2056.2,2055.5,0.56353472]
[1771017908348,0.0011,2056.2,2055.5,1.21623073]
[1771017908550,0.0011,2056.2,2055.6,0.56353472]
[1771017915610,0.0011,2056.2,2055.6,1.77972048]
[1771017915906,0.0011,2056.2,2055.8,0.56353472]
[1771017916784,2.91286337,2056.1,2055.8,0.56353472]
[1771017916990,0.0011,2056.2,2055.8,0.56353472]
[1771017917583,2.91222049,2056.1,2055.8,0.56353472]
[1771017917770,0.0011,2056.2,2055.8,0.56353472]
[1771017918102,2.91241647,2056.1,2055.8,0.56353472]
[1771017918272,0.0011,2056.2,2055.8,0.56353472]
[1771017918463,2.91222906,2056.1,2055.8,0.56353472]
[1771017918786,2.91222906,2056.0,2055.8,0.56353472]
[1771017919087,0.0011,2056.2,2055.8,0.56353472]
[1771017919283,2.91213695,2056.1,2055.8,0.56353472]
[1771017919472,2.91213695,2056.0,2055.8,0.56353472]
[1771017919683,0.0011,2056.2,2055.8,0.56353472]
[1771017919987,2.91214126,2056.1,2055.8,0.56353472]
[1771017920192,2.91214126,2056.0,2055.8,0.56353472]
[1771017920491,0.0011,2056.2,2055.8,0.56353472]
[1771017920693,2.91206852,2056.1,2055.8,0.56353472]
[1771017920994,2.91206852,2056.0,2055.8,0.56353472]
[1771017921189,0.0011,2056.2,2055.8,0.56353472]
[1771017921494,1.92572074,2056.1,2055.7,0.56353472]
[1771017921690,0.0011,2056.2,2055.7,0.56353472]
[1771017932038,0.0011,2056.2,2055.8,0.56353472]
[1771017932643,0.0011,2056.2,2055.9,0.56353472]
[1771017932942,0.0011,2057.1,2056.1,0.56298472]
[1771017933142,7.67491894,2057.1,2056.1,0.56298472]
[1771017933642,0.0011,2057.1,2056.3,0.56298472]
[1771017940177,0.0011,2057.1,2056.5,0.56298472]
[1771017940470,0.0011,2057.1,2056.6,0.56298472]
[1771017940668,1.455,2057.5,2056.6,0.56298472]
[1771017942576,0.876,2057.6,2056.8,0.56298472]
[1771017943176,0.876,2057.6,2056.8,0.53]
[1771017943373,0.876,2057.6,2056.9,0.56298472]
[1771017945777,7.66826866,2057.5,2056.6,0.56298472]
[1771017945950,7.66826866,2057.5,2056.6,1.09298472]
[1771017946155,7.66826866,2057.5,2056.7,0.56298472]
[1771017947983,2.09102546,2057.6,2056.7,0.56298472]
[1771017947984,0.876,2057.6,2056.7,0.56298472]
[1771017949756,7.66826866,2057.4,2056.6,1.09298472]
[1771017949958,7.66826866,2057.4,2056.7,0.56298472]
[1771017950759,8.8834019,2057.4,2056.7,0.56298472]
[1771017950961,7.66826866,2057.4,2056.7,0.56298472]
[1771017951280,2.66611348,2057.5,2056.7,0.56298472]
[1771017951858,1.451,2057.5,2056.7,0.56298472]
[1771017952669,1.21499213,2057.7,2056.7,0.56298472]
[1771017952862,1.451,2057.6,2056.7,0.56298472]
[1771017954801,2.66603504,2057.6,2056.7,0.56298472]
[1771017957568,1.451,2057.6,2056.7,0.56298472]
[1771017959608,2.6660079,2057.6,2056.7,0.56298472]
[1771017962206,2.6660079,2057.6,2056.4,0.56398472]
[1771017962913,2.6660079,2057.6,2056.4,0.001]
[1771017963814,2.6660079,2057.6,2056.4,0.56398472]
[1771017964708,2.327,2057.5,2056.4,0.56398472]
[1771017965792,1.21512588,2057.4,2056.4,0.56398472]
[1771017967202,2.91304001,2057.3,2056.4,0.56398472]
[1771017967507,2.91304001,2057.2,2056.4,0.56398472]
[1771017967820,2.91304001,2057.1,2056.5,0.56298472]
[1771017968015,2.91304001,2057.0,2056.5,0.56298472]
[1771017968217,2.66812924,2057.4,2056.5,0.56298472]
[1771017968418,1.453,2057.4,2056.5,0.56298472]
[1771017969432,2.66815044,2057.4,2056.5,0.56298472]
[1771017969625,1.453,2057.4,2056.5,0.56298472]
[1771017971602,2.66815092,2057.4,2056.5,0.56298472]
[1771017987860,3.54415092,2057.4,2056.5,0.56298472]
[1771017996163,9.92415092,2057.4,2056.5,0.56298472]
[1771018001346,0.43709996,2057.3,2056.5,0.49367306]
[1771018003172,1.66615069,2057.2,2056.5,0.49367306]
[1771018003764,0.44940062,2057.1,2056.4,0.001]
[1771018003966,0.44940062,2057.1,2056.2,0.001]
[1771018004361,0.45474402,2056.9,2055.5,0.876]
[1771018004673,0.45474402,2056.7,2055.9,0.49467306]
[1771018004853,2.91835069,2056.6,2055.9,0.49467306]
[1771018005039,2.91835069,2056.5,2055.9,0.49467306]
[1771018005245,2.91835069,2056.4,2055.9,0.49467306]
[1771018005456,2.91835069,2056.3,2055.9,0.49467306]
[1771018005658,2.91835069,2056.2,2055.9,0.49467306]
[1771018005869,2.91835069,2056.1,2055.9,0.49467306]
[1771018006179,2.91835069,2056.0,2055.9,0.49467306]
[1771018007353,0.45474402,2056.6,2055.9,0.49467306]
[1771018010485,0.45474402,2057.0,2055.9,0.49467306]
[1771018010785,1.443,2056.9,2055.9,0.49467306]
[1771018011876,1.89774402,2056.9,2055.9,0.49467306]
[1771018014889,0.45474402,2056.9,2056.0,0.49367306]
[1771018015057,1.42074402,2057.1,2056.0,0.49367306]
[1771018015656,0.45474402,2057.0,2056.0,0.49367306]
[1771018017589,0.966,2057.1,2056.0,0.49367306]
[1771018017779,1.42074402,2057.1,2056.0,0.49367306]
[1771018019288,1.42074402,2057.1,2056.0,1.70960751]
[1771018019492,0.966,2057.1,2056.1,0.49367306]
[1771018019676,0.966,2057.1,2056.1,0.47732544]
[1771018021494,0.966,2057.1,2056.2,0.48207951]
[1771018023002,0.47938092,2057.0,2056.2,0.48207951]
[1771018023220,0.47938092,2057.0,2056.0,0.48207951]
[1771018024272,0.47938092,2056.9,2056.0,0.48207951]
[1771018027500,1.91438092,2057.1,2056.1,0.48207951]
[1771018029022,0.47938092,2057.0,2056.1,0.48207951]
[1771018031069,0.47938092,2056.9,2056.1,0.48207951]
[1771018033778,0.47938092,2056.8,2056.1,0.48207951]
[1771018047324,0.47938092,2056.7,2055.9,0.48307951]
[1771018047718,2.91820723,2056.6,2055.9,0.48307951]
[1771018047908,0.47938092,2056.7,2055.9,0.48307951]
[1771018047909,2.91820723,2056.5,2055.9,0.48307951]
[1771018048237,0.47938092,2056.7,2055.9,0.48307951]
[1771018048238,2.91820723,2056.4,2055.9,0.48307951]
[1771018048412,2.91820723,2056.3,2055.9,0.48307951]
[1771018048706,2.91820723,2056.2,2055.9,0.48307951]
[1771018048915,2.91820723,2056.1,2055.9,0.48307951]
[1771018049231,7.67400279,2056.5,2055.9,0.48307951]
[1771018049419,2.91811972,2056.4,2055.9,0.48307951]
[1771018049616,2.91811972,2056.3,2055.9,0.48307951]
[1771018049929,2.91811972,2056.2,2055.9,0.48307951]
[1771018050128,2.91811972,2056.1,2055.9,0.48307951]
[1771018050334,2.91811972,2056.0,2055.9,0.48307951]
[1771018056839,2.91811972,2056.0,2055.9,0.001]
[1771018059538,2.91677657,2056.0,2055.9,0.001]
[1771018059738,2.91543346,2056.0,2055.9,0.001]
[1771018059938,2.91543346,2056.0,2055.8,0.001]
[1771018060150,7.6743948,2056.2,2055.8,0.001]
[1771018062160,0.48565643,2056.1,2055.8,0.001]
[1771018062316,7.6743948,2056.0,2055.8,0.001]
[1771018066146,9.1023948,2056.2,2055.8,0.001]
[1771018066347,0.48565643,2056.5,2055.8,0.45775488]
[1771018066519,1.91565643,2056.5,2055.8,0.45775488]
[1771018068344,1.43,2056.5,2055.8,0.45775488]
[1771018069438,0.0011,2056.4,2055.8,0.45775488]
[1771018070343,0.0011,2056.4,2055.8,0.001]
[1771018070344,8.16005123,2056.2,2055.8,0.001]
[1771018071848,2.91473102,2056.1,2055.8,0.001]
[1771018072045,2.91473102,2056.0,2055.8,0.001]
[1771018072250,2.91473102,2055.9,2055.8,0.001]
[1771018073616,10.58912582,2055.9,2055.8,0.001]
[1771018073820,2.91473102,2055.9,2055.8,0.001]
[1771018074334,2.91473102,2055.9,2055.6,0.001]
[1771018074651,7.6743948,2056.1,2055.6,0.001]
[1771018074652,2.91473102,2055.8,2055.6,0.001]
[1771018074825,2.91473102,2055.7,2055.6,0.001]
[1771018075025,2.91473102,2055.7,2055.4,0.001]
[1771018075225,2.91473102,2055.6,2055.4,0.001]
[1771018075420,2.91473102,2055.5,2055.4,0.001]
[1771018075852,2.91473102,2055.5,2055.4,0.45775488]
[1771018076147,2.90139108,2055.5,2055.4,0.45775488]
[1771018076346,2.40139108,2055.5,2055.4,0.45775488]
[1771018076553,1.438,2056.1,2055.4,0.45775488]
[1771018078067,0.48675643,2056.4,2055.5,0.522]
[1771018078378,0.0011,2056.4,2055.6,0.45675488]
[1771018080352,0.48675643,2056.4,2055.6,0.45675488]
[1771018084798,0.48675643,2056.4,2055.6,0.97975488]
[1771018085277,0.48446148,2056.2,2055.6,0.523]
[1771018085581,0.48446148,2056.2,2055.6,0.99440674]
[1771018087877,0.48446148,2056.2,2055.6,0.47140674]
[1771018089091,0.48446148,2056.2,2055.5,0.523]
[1771018089386,0.48446148,2056.2,2055.5,0.99440674]
[1771018090064,0.48446148,2056.2,2055.5,0.523]
[1771018090260,0.48446148,2056.2,2055.6,0.47140674]
[1771018090461,0.0011,2056.4,2055.7,0.47140674]
[1771018091696,0.0011,2056.4,2055.8,0.47140674]
[1771018103391,0.48556148,2056.4,2055.6,0.47140674]
[1771018107902,0.0011,2056.4,2055.6,0.47140674]
[1771018110087,0.0011,2056.4,2055.6,1.68759259]
[1771018110287,0.0011,2056.4,2055.7,0.47140674]
[1771018111618,0.49998002,2056.4,2055.7,0.47140674]
[1771018111906,0.49888002,2056.3,2055.7,0.47140674]
[1771018113210,0.49888002,2056.3,2055.5,1.00991701]
[1771018113416,0.49888002,2056.3,2055.6,0.48691701]
[1771018115192,0.49888002,2056.3,2055.6,1.01791701]
[1771018116418,7.6754948,2056.4,2055.7,0.48691701]
[1771018116622,0.0011,2056.4,2055.7,0.48691701]
[1771018117805,0.48017312,2056.4,2055.6,0.99656553]
[1771018118395,0.48017312,2056.4,2055.7,0.46556553]
[1771018118919,0.0011,2056.4,2055.7,0.46556553]
[1771018119299,1.91207312,2056.8,2055.7,7.67274383]
[1771018119622,0.0011,2056.9,2056.0,0.46556553]
[1771018119925,0.0011,2056.9,2056.2,0.46556553]
[1771018120923,0.48017312,2056.9,2056.2,0.46556553]
[1771018122931,0.25416242,2057.2,2056.3,0.46556553]
[1771018123143,0.0011,2057.4,2056.7,0.46556553]
[1771018123296,0.48017312,2057.7,2056.9,0.46556553]
[1771018127602,0.48017312,2057.7,2056.5,5.32811654]
[1771018127603,0.47907312,2057.6,2056.5,5.32811654]
[1771018127803,8.15181695,2057.3,2056.6,0.99956553]
[1771018128134,0.47907312,2057.3,2056.6,0.99956553]
[1771018128924,0.47907312,2057.3,2056.7,0.46556553]
[1771018129233,8.15181695,2057.5,2056.7,0.46556553]
[1771018129429,0.47907312,2057.5,2056.7,0.46556553]
[1771018132131,0.47907312,2057.5,2056.8,0.46556553]
[1771018132438,0.48017312,2057.7,2056.8,0.46556553]
[1771018137043,0.48017312,2057.7,2056.7,7.67274383]
[1771018137342,0.48017312,2057.7,2056.7,8.13830936]
[1771018137845,0.47907312,2057.6,2056.3,0.46556553]
[1771018138031,7.67384383,2057.7,2056.0,0.46556553]
[1771018138032,8.15181695,2056.7,2056.0,0.46556553]
[1771018138234,8.15181695,2056.7,2056.1,0.499]
[1771018138751,8.15181695,2056.7,2056.0,0.46556553]
[1771018138930,0.47907312,2056.6,2056.1,0.536]
[1771018140537,0.47907312,2056.2,2055.5,0.46556553]
[1771018140847,0.47907312,2056.2,2055.6,0.536]
[1771018141939,8.21746355,2056.7,2055.7,0.55629008]
[1771018142140,0.54471972,2056.8,2055.9,0.55629008]
[1771018143154,0.54471972,2056.8,2056.0,0.55629008]
[1771018148859,7.67274383,2056.9,2056.1,0.55629008]
[1771018149045,0.54471972,2057.0,2056.2,0.55629008]
[1771018152065,0.54471972,2057.0,2056.1,0.537]
[1771018152066,0.54471972,2056.8,2056.1,0.537]
[1771018156537,0.54471972,2056.8,2056.0,0.55629008]
[1771018163855,0.54471972,2056.8,2055.9,0.537]
[1771018164064,0.54471972,2056.8,2055.9,1.09329008]
[1771018167373,0.54471972,2056.8,2055.9,0.55629008]
[1771018167576,0.54471972,2056.4,2055.7,0.55729008]
[1771018167742,0.54471972,2056.4,2055.7,1.09729008]
[1771018168762,0.54471972,2056.4,2055.7,0.541]
[1771018168965,7.67274383,2056.3,2055.7,0.001]
[1771018169174,0.54471972,2055.8,2055.5,0.001]
[1771018169461,8.21746355,2055.7,2055.5,0.001]
[1771018170546,0.54471972,2055.6,2055.3,0.001]
[1771018170747,0.54471972,2055.4,2055.3,0.001]
[1771018173880,7.67274383,2055.7,2055.3,0.001]
[1771018174077,8.17242693,2055.7,2055.3,0.001]
[1771018176788,0.4996831,2055.7,2054.8,0.001]
[1771018176988,8.17242693,2055.3,2054.8,0.001]
[1771018177285,8.17242693,2055.3,2055.0,0.001]
[1771018177684,1.433,2055.4,2055.0,0.001]
[1771018177685,7.67274383,2055.1,2055.0,0.001]
[1771018177873,7.67274383,2054.9,2054.8,0.001]
[1771018178952,0.49221589,2055.0,2054.8,0.001]
[1771018183477,1.434,2055.1,2054.8,0.001]
[1771018183790,0.49221589,2055.3,2054.8,0.001]
[1771018185789,0.49221589,2055.2,2054.8,0.001]
[1771018187864,0.49221589,2055.0,2054.8,0.001]
[1771018188064,0.49221589,2054.9,2054.8,0.001]
[1771018189479,1.437,2055.0,2054.8,0.001]
[1771018190496,0.49221589,2054.9,2054.6,0.001]
[1771018190708,0.49221589,2054.8,2053.9,0.001]
[1771018192095,0.49221589,2054.6,2053.9,0.001]
[1771018192262,1.438,2054.5,2053.9,0.5023568]
[1771018196608,9.99168535,2054.0,2053.4,0.001]
[1771018196912,1.92921589,2054.0,2053.4,0.001]
[1771018197074,0.49221589,2053.9,2053.4,0.001]
[1771018197780,0.49221589,2053.7,2053.4,0.001]
[1771018198218,0.49221589,2053.7,2052.9,0.5013568]
[1771018199476,0.49221589,2053.7,2052.6,0.5013568]
[1771018199915,1.21737436,2053.6,2052.6,0.5013568]
[1771018200122,1.70959025,2053.6,2052.6,0.5013568]
[1771018200415,0.49221589,2053.6,2052.6,0.5013568]
[1771018200614,1.70951769,2053.8,2052.6,0.5013568]
[1771018200819,0.499,2053.7,2052.6,0.5013568]
[1771018201318,0.499,2053.7,2053.1,0.001]
[1771018201481,0.9952217,2053.7,2053.1,0.001]
[1771018201680,0.4962217,2053.6,2053.1,0.001]
[1771018204880,0.4962217,2054.0,2053.1,0.47559299]
[1771018205085,1.436,2053.9,2053.1,0.47559299]
[1771018205314,0.4962217,2054.1,2053.1,0.47559299]
[1771018205687,2.89702889,2054.0,2053.1,0.47559299]
[1771018205889,3.39325059,2053.9,2053.1,0.47559299]
[1771018206091,3.39325059,2053.8,2053.1,0.47559299]
[1771018206290,2.89702889,2053.7,2053.1,0.47559299]
[1771018206484,2.89702889,2053.6,2053.1,0.47559299]
[1771018206690,2.89702889,2053.5,2053.1,0.47559299]
[1771018206890,7.6957938,2053.6,2053.1,0.47559299]
[1771018207091,2.89784643,2053.5,2053.1,0.47559299]
[1771018207417,7.6957938,2053.6,2053.1,0.47559299]
[1771018207619,2.89800003,2053.5,2053.1,0.47559299]
[1771018207819,8.1920155,2053.8,2053.1,0.47559299]
[1771018208119,2.89785336,2053.7,2053.1,0.47559299]
[1771018208313,2.89785336,2053.6,2053.1,0.47559299]
[1771018208646,2.89785336,2053.5,2053.1,0.47559299]
[1771018208826,8.1920155,2053.8,2053.1,0.47559299]
[1771018208994,2.89784491,2053.7,2053.1,0.47559299]
[1771018209190,2.89784491,2053.6,2053.1,0.47559299]
[1771018209391,2.89784491,2053.5,2053.1,0.47559299]
[1771018209591,8.1920155,2053.8,2053.1,0.47559299]
[1771018209812,2.89798198,2053.7,2053.1,0.47559299]
[1771018210119,2.89798198,2053.6,2053.1,0.47559299]
[1771018210318,2.89798198,2053.5,2053.1,0.47559299]
[1771018210510,8.1920155,2053.8,2053.1,0.47559299]
[1771018210706,2.89824737,2053.7,2053.1,0.47559299]
[1771018210911,2.89824737,2053.6,2053.1,0.47559299]
[1771018211115,2.89824737,2053.5,2053.1,0.47559299]
[1771018211291,8.1920155,2053.8,2053.1,0.47559299]
[1771018211489,2.8986956,2053.7,2053.1,0.47559299]
[1771018211692,2.8986956,2053.6,2053.1,0.47559299]
[1771018211914,2.8986956,2053.5,2053.1,0.47559299]
[1771018212109,7.6957938,2053.8,2053.1,0.47559299]
[1771018212323,2.89902152,2053.7,2053.1,0.47559299]
[1771018212525,2.89902152,2053.6,2053.1,0.47559299]
[1771018212725,2.89902152,2053.5,2053.1,0.47559299]
[1771018213028,0.4962217,2053.9,2053.1,0.47559299]
[1771018213222,2.89912955,2053.8,2053.1,0.47559299]
[1771018213527,2.89912955,2053.7,2053.1,0.47559299]
[1771018213709,2.89912955,2053.6,2053.1,0.47559299]
[1771018213905,2.89912955,2053.5,2053.1,0.47559299]
[1771018214112,0.4962217,2053.9,2053.1,0.47559299]
[1771018214317,2.90103115,2053.8,2053.1,0.47559299]
[1771018214514,2.90103115,2053.7,2053.1,0.47559299]
[1771018214720,2.90103115,2053.6,2053.1,0.47559299]
[1771018215020,2.90103115,2053.5,2053.1,0.47559299]
[1771018215225,2.90103115,2053.4,2053.1,0.47559299]
[1771018215528,0.4962217,2053.9,2053.1,0.47559299]
[1771018215723,2.90247863,2053.8,2053.1,0.47559299]
[1771018215928,2.90247863,2053.7,2053.1,0.47559299]
[1771018216100,2.90247863,2053.6,2053.1,0.47559299]
[1771018216301,2.90247863,2053.5,2053.1,0.47559299]
[1771018216500,2.90247863,2053.4,2053.1,0.47559299]
[1771018216699,0.4962217,2053.9,2053.1,0.47559299]
[1771018217027,2.90405182,2053.8,2053.1,0.47559299]
[1771018217226,2.90405182,2053.7,2053.1,0.47559299]
[1771018217419,2.90405182,2053.6,2053.1,0.47559299]
[1771018217599,2.90405182,2053.5,2053.1,0.47559299]
[1771018217801,2.90405182,2053.4,2053.1,0.47559299]
[1771018218001,0.4962217,2053.9,2053.1,0.47559299]
[1771018218228,2.90542925,2053.8,2053.1,0.47559299]
[1771018218431,2.90542925,2053.7,2053.1,0.47559299]
[1771018218621,2.90542925,2053.6,2053.1,0.47559299]
[1771018218820,2.90542925,2053.5,2053.1,0.47559299]
[1771018219019,0.4962217,2053.9,2053.1,0.47559299]
[1771018219020,2.90542925,2053.4,2053.1,0.47559299]
[1771018219224,0.4962217,2053.9,2053.1,0.47559299]
[1771018219417,3.40558025,2053.8,2053.1,0.47559299]
[1771018219622,2.90935855,2053.7,2053.1,0.47559299]
[1771018219821,2.90935855,2053.6,2053.1,0.47559299]
[1771018220012,2.90935855,2053.5,2053.1,0.47559299]
[1771018220218,2.90935855,2053.4,2053.1,0.47559299]
[1771018220543,2.90935855,2053.3,2053.1,0.47559299]
[1771018220710,2.90935855,2053.2,2053.1,0.47559299]
[1771018222544,2.90801505,2053.2,2053.1,0.47559299]
[1771018222743,2.89940681,2053.2,2053.1,0.47559299]
[1771018222948,2.88440681,2053.2,2053.1,0.47559299]
[1771018223940,0.4962217,2053.8,2053.1,0.47559299]
[1771018226634,0.4962217,2053.8,2053.1,0.001]
[1771018226840,0.4962217,2053.7,2053.1,0.001]
[1771018231846,0.4962217,2053.7,2053.1,0.49036691]
[1771018232681,0.0011,2053.8,2053.1,0.49036691]
[1771018234991,7.69247131,2053.6,2053.1,0.001]
[1771018235270,7.69247131,2053.4,2053.1,0.001]
[1771018235482,0.51810082,2053.3,2052.9,0.001]
[1771018238561,8.17869501,2053.2,2052.9,0.001]
[1771018238760,1.9162237,2053.6,2052.9,0.47456724]
[1771018239085,0.4862237,2053.5,2052.9,0.47456724]
[1771018239293,0.4862237,2053.5,2052.9,0.001]
[1771018239573,0.4873237,2054.2,2053.3,0.47356724]
[1771018239774,8.9106111,2054.2,2053.3,0.47356724]
[1771018239960,0.4873237,2054.0,2053.3,0.47356724]
[1771018240365,0.0011,2053.9,2053.3,0.47356724]
[1771018243259,0.4873237,2053.9,2053.0,1.00456724]
[1771018244283,0.0011,2053.9,2053.1,0.47356724]
[1771018244472,0.4873237,2053.9,2053.1,0.47356724]
[1771018250456,0.4862237,2053.8,2053.1,0.47356724]
[1771018250853,0.4862237,2053.8,2053.0,0.531]
[1771018251071,0.4862237,2053.8,2053.0,1.00456724]
[1771018251762,0.4862237,2053.8,2053.1,0.47356724]
[1771018251958,0.0011,2053.9,2053.1,0.47356724]
[1771018254488,0.0011,2053.9,2053.2,0.47356724]
[1771018256771,0.0011,2053.9,2053.3,0.47356724]
[1771018260208,0.4873237,2053.9,2053.3,0.47356724]
[1771018260987,0.4873237,2053.9,2053.0,0.52554347]
[1771018261192,0.4873237,2053.9,2053.1,0.52554347]
[1771018261615,0.52517057,2053.5,2052.9,0.001]
[1771018262987,0.52517057,2053.5,2052.9,0.52654347]
[1771018264316,0.52517057,2053.7,2052.9,0.52654347]
[1771018264614,1.94827057,2053.9,2053.0,0.52554347]
[1771018265128,0.52627057,2053.9,2053.0,0.52554347]
[1771018267801,0.52627057,2053.9,2053.1,0.52554347]
[1771018282934,0.52517057,2053.8,2053.1,0.52554347]
[1771018284341,8.21957093,2053.7,2053.1,0.52554347]
[1771018284523,0.52517057,2053.6,2052.9,0.52654347]
[1771018284844,0.52517057,2053.8,2053.0,0.52554347]
[1771018287238,2.92149892,2053.7,2053.0,0.52554347]
[1771018287535,2.92149892,2053.6,2053.1,0.52554347]
[1771018287739,2.92149892,2053.5,2053.1,0.52554347]
[1771018287916,2.92149892,2053.4,2053.1,0.52554347]
[1771018288117,2.92149892,2053.3,2053.1,0.52554347]
[1771018288319,7.69550036,2053.9,2053.1,0.52554347]
[1771018288518,2.92198121,2053.8,2053.1,0.52554347]
[1771018288714,2.92198121,2053.7,2053.1,0.52554347]
[1771018288918,2.92198121,2053.6,2053.1,0.52554347]
[1771018289110,8.22067093,2053.9,2053.1,0.52554347]
[1771018289111,2.92198121,2053.5,2053.1,0.52554347]
[1771018289316,8.22067093,2053.9,2053.1,0.52554347]
[1771018293456,0.0011,2054.2,2053.3,0.52440096]
[1771018293759,0.48759037,2054.2,2053.3,0.52440096]
[1771018295518,0.0011,2054.2,2053.4,0.52440096]
[1771018297824,0.0011,2054.2,2053.5,0.54993742]
[1771018304665,0.0011,2054.2,2053.6,0.536]
[1771018304966,0.0011,2054.2,2053.6,1.08593742]
[1771018309169,0.0011,2054.2,2053.7,0.54993742]
[1771018309667,0.54624741,2054.2,2053.6,0.536]
[1771018309851,0.54514741,2054.1,2053.3,0.54993742]
[1771018310166,0.54514741,2054.1,2053.4,0.537]
[1771018310541,0.54514741,2054.1,2053.4,1.08693742]
[1771018313474,0.54514741,2054.1,2053.5,0.54993742]
[1771018315975,0.0011,2054.2,2053.6,0.54993742]
[1771018316147,0.54624741,2054.2,2053.6,0.54993742]
[1771018316543,0.0011,2054.2,2053.6,0.54993742]
[1771018318465,0.0011,2054.2,2053.7,0.54993742]
[1771018324789,3.1977642,2216.7,2053.7,0.54993742]